Workbook

Sheet Land 4 Buy (hidden)
A1: مساحة الأرض | D1: 500 | G1: 4000 | I1: سعر المتر | M1: المقطم | O1: 600م | R1: العبور | T1: 600م
A2: الإجمالي | D2: 5000000 | N2: م. منير | P2: 330 | S2: حاج/ علي | U2: 330 | X2: بيتك بإيدك
A4: التراخيص | D4: 50000 | M4: 50000 | R4: 35000
A5: المقاولات | D5: 2750000 | M5: 4300000 | R5: 2800000
A6: المطابقات | D6: 20000 | M6: 50000 | R6: 15000
A7: المرافق | D7: 20000 | M7: 50000 | R7: 30000
A8: نثريات | D8: 50000 | M8: 50000 | R8: 20000
A9: الإجمالي الكلّي | D9: =SUM(D4:H8) -> 2890000 | I9: مساحة الوحدة | J9: عدد الوحدات | K9: عدد الأدوار | M9: =SUM(M4:P8) -> 4500000 | R9: =SUM(R4:U8) -> 2900000 | W9: =SUM(W4:Z8) -> 0
A11: سعر البيع المتوقع | D11: 8000 | I11: 180 | J11: 9 | K11: 5 | M11: 350 | N11: الهضبة الوسطى | O11: 355 | P11: 18500
A12: سعر الجراج | D12: 150000 | I12: =(D11*(I11*J11))+(J11*D12) -> 14310000 | M12: 2800000 | R12: 8000000
A14: المكسب الصافي | D14: =I12-D9 -> 11420000 | M14: 6600000
M15: 3400000 | O15: مقاولات | P15: بالثلث

Sheet Apartment (hidden)
B1: 1st YEAR | L1: 2nd YEAR | X1: 3rd YEAR | AH1: 1000
B3: # | C3: 8900 | F3: % | G3: Benitfi | I3: Different | L3: # | M3: =C16 -> 11969.51054 | P3: % | Q3: Benitfi | S3: Different | X3: # | Y3: =M16 -> 16097.66095 | AB3: % | AC3: Benitfi | AE3: Different | AH3: $ | AI3: € | AJ3: ₤ | AK3: K_ Dinar | AL3: UAE_ Derhem | AM3: KSA_ RS
AH4: 17.5 | AI4: 19.77 | AJ4: 22.98 | AK4: 57.5 | AL4: 4.76 | AM4: 4.66
B5: 1 | C5: =G5+C3 -> 9122.5 | F5: 0.025 | G5: =C3*F5 -> 222.5 | I5: =C5-C3 -> 222.5 | L5: 13 | M5: =Q5+M3 -> 12268.7483 | P5: =F5 -> 0.025 | Q5: =M3*P5 -> 299.2377634 | S5: =M5-M3 -> 299.2377634 | X5: 25 | Y5: =AC5+Y3 -> 16902.544 | AB5: 0.05 | AC5: =Y3*AB5 -> 804.8830476 | AE5: =Y5-Y3 -> 804.8830476 | AH5: =AH1*AH4 -> 17500 | AI5: =AH1*AI4 -> 19770 | AJ5: =AH1*AJ4 -> 22980 | AK5: =AH1*AK4 -> 57500 | AL5: =AH1*AL4 -> 4760 | AM5: =AH1*AM4 -> 4660
B6: 2 | C6: =G6+C5 -> 9350.5625 | F6: 0.025 | G6: =C5*F6 -> 228.0625 | I6: =SUM(G5:G6) -> 450.5625 | L6: 14 | M6: =Q6+M5 -> 12575.46701 | P6: 0.025 | Q6: =M5*P6 -> 306.7187075 | S6: =SUM(Q5:Q6) -> 605.9564709 | X6: 26 | Y6: =AC6+Y5 -> 17747.6712 | AB6: 0.05 | AC6: =Y5*AB6 -> 845.1271999 | AE6: =SUM(AC5:AC6) -> 1650.010248
B7: 3 | C7: =G7+C6 -> 9584.326563 | F7: 0.025 | G7: 233.7640625 | I7: =SUM(G5:H7) -> 684.3265625 | L7: 15 | M7: =Q7+M6 -> 12889.85368 | P7: 0.025 | Q7: 314.3866752 | S7: =SUM(Q5:R7) -> 920.343146 | X7: 27 | Y7: =AC7+Y6 -> 18635.05476 | AB7: 0.05 | AC7: 887.3835599 | AE7: =SUM(AC5:AD7) -> 2537.393807
B8: 4 | C8: 9823.934727 | F8: 0.025 | G8: 239.6081641 | I8: =SUM(G5:H8) -> 923.9347266 | L8: 16 | M8: 13212.10002 | P8: 0.025 | Q8: 322.246342 | S8: =SUM(Q5:R8) -> 1242.589488 | X8: 28 | Y8: 19566.8075 | AB8: 0.05 | AC8: 931.7527379 | AE8: =SUM(AC5:AD8) -> 3469.146545
B9: 5 | C9: 10069.53309 | F9: 0.025 | G9: 245.5983682 | I9: =SUM(G5:H9) -> 1169.533095 | L9: 17 | M9: 13542.40252 | P9: 0.025 | Q9: 330.3025006 | S9: =SUM(Q5:R9) -> 1572.891989 | X9: 29 | Y9: 20545.14787 | AB9: 0.05 | AC9: 978.3403748 | AE9: =SUM(AC5:AD9) -> 4447.48692
B10: 6 | C10: 10321.27142 | F10: 0.025 | G10: 251.7383274 | I10: =SUM(G5:H10) -> 1421.271422 | L10: 18 | M10: 13880.96259 | P10: 0.025 | Q10: 338.5600631 | S10: =SUM(Q5:R10) -> 1911.452052 | X10: 30 | Y10: 21572.40527 | AB10: 0.05 | AC10: 1027.257394 | AE10: =SUM(AC5:AD10) -> 5474.744314
B11: 7 | C11: 10579.30321 | F11: 0.025 | G11: 258.0317856 | I11: =SUM(G5:H11) -> 1679.303208 | L11: 19 | M11: 14227.98665 | P11: 0.025 | Q11: 347.0240647 | S11: =SUM(Q5:R11) -> 2258.476116 | X11: 31 | Y11: 22651.02553 | AB11: 0.05 | AC11: 1078.620263 | AE11: =SUM(AC5:AD11) -> 6553.364577
B12: 8 | C12: 10843.78579 | F12: 0.025 | G12: 264.4825802 | I12: =SUM(G5:H12) -> 1943.785788 | L12: 20 | M12: 14583.68632 | P12: 0.025 | Q12: 355.6996663 | S12: =SUM(Q5:R12) -> 2614.175783 | X12: 32 | Y12: 23783.5768 | AB12: 0.05 | AC12: 1132.551276 | AE12: =SUM(AC5:AD12) -> 7685.915853
B13: 9 | C13: 11114.88043 | F13: 0.025 | G13: 271.0946447 | I13: =SUM(G5:H13) -> 2214.880433 | L13: 21 | M13: 14948.27848 | P13: 0.025 | Q13: 364.592158 | S13: =SUM(Q5:R13) -> 2978.767941 | X13: 33 | Y13: 24972.75564 | AB13: 0.05 | AC13: 1189.17884 | AE13: =SUM(AC5:AD13) -> 8875.094694
B14: 10 | C14: 11392.75244 | F14: 0.025 | G14: 277.8720108 | I14: =SUM(G5:H14) -> 2492.752443 | L14: 22 | M14: 15321.98544 | P14: 0.025 | Q14: 373.7069619 | S14: =SUM(Q5:R14) -> 3352.474903 | X14: 34 | Y14: 26221.39343 | AB14: 0.05 | AC14: 1248.637782 | AE14: =SUM(AC5:AD14) -> 10123.73248
B15: 11 | C15: 11677.57125 | F15: 0.025 | G15: 284.8188111 | I15: =SUM(G5:H15) -> 2777.571254 | L15: 23 | M15: 15705.03507 | P15: 0.025 | Q15: 383.049636 | S15: =SUM(Q5:R15) -> 3735.524539 | X15: 35 | Y15: 27532.4631 | AB15: 0.05 | AC15: 1311.069671 | AE15: =SUM(AC5:AD15) -> 11434.80215
B16: 12 | C16: 11969.51054 | F16: 0.025 | G16: 291.9392814 | I16: =SUM(G5:H16) -> 3069.510536 | L16: 24 | M16: 16097.66095 | P16: 0.025 | Q16: 392.6258769 | S16: =SUM(Q5:R16) -> 4128.150415 | X16: 36 | Y16: 28909.08625 | AB16: 0.05 | AC16: 1376.623155 | AE16: =SUM(AC5:AD16) -> 12811.4253

Sheet DATA_SYSTEM (hidden)
A1: العبور - القليوبية
A2: تاريخ البيان | B2: اسم العميل | C2: هاتف | D2: الحالة | G2: العنوان | O2: نوع العرض | S2: المساحة م2 | T2: حالة التشطيب | U2: تاريخ التسليم | V2: تاريخ البناء | W2: سعر المتر ج | X2: تسهيلات بالسداد | Y2: السعر | Z2: باقي التفاصيل | AA2: سيلز البيان | AB2: سيلز المُشتَغِل | AC2: تمت العملية بإجمالي | AD2: ملاحظات1 | AE2: ملاحظات2 | AF2: عمولة
D3: بائع | E3: مشتري | F3: وسيط | G3: الوحدة | H3: الدور | I3: رقم المنزل | J3: بلوك | K3: اسم الشارع | L3: المجاورة | M3: الحي | N3: لينك الخريطة | O3: أرض | P3: فيلا/ منزل | Q3: شقة | R3: أخرى | AF3: 0.025
A4: 2019-04-10 | B4: ايهاب عبد العزيز احمد | C4: 01006267473 - 01100567890 | D4: * | G4: 4 | H4: 1 | I4: 1 | J4: 15041 | K4: الفريق يوسف صبري ابو طالب | M4: 7 | N4: https://goo.gl/maps/rZF91tXCfYu | Q4: * | S4: 150 | T4: س. لوكس | U4: فوري | V4: 2011 | W4: 6500 | Y4: 1000000 | Z4: 3غرفة +2حمام +2ريسبشن | AA4: تامر | AB4: ايهاب | AC4: 975000 | AF4: =AC4*AF3 -> 24375
A1114: 0 | B1114: 0 | C1114: 0 | D1114: 0 | E1114: 0 | F1114: 0 | G1114: 0 | H1114: 0 | I1114: 0 | J1114: 0 | K1114: 0 | L1114: 0 | N1114: 0 | O1114: 0 | P1114: 0 | Q1114: 0 | R1114: 0 | S1114: 0 | T1114: 0 | U1114: 0 | V1114: 0 | W1114: 0 | X1114: 0 | Y1114: 0 | Z1114: 0 | AA1114: 0 | AB1114: 0 | AC1114: 0 | AD1114: 0 | AE1114: 0 | AF1114: 0

Sheet Request_Areas (hidden)
A1: الطلبات - مناطق
A2: تاريخ البيان | B2: اسم العميل | C2: هاتف | D2: الحالة | G2: العنوان | P2: نوع العرض | T2: المساحة م2 | U2: حالة التشطيب | V2: تاريخ التسليم | W2: سعر المتر ج | X2: تسهيلات بالسداد | Y2: السعر | Z2: باقي التفاصيل | AA2: سيلز البيان | AB2: سيلز المُشتَغِل | AC2: تمت العملية بإجمالي | AD2: ملاحظات1 | AE2: ملاحظات2 | AF2: عمولة
D3: بائع | E3: مشتري | F3: وسيط | G3: الوحدة | H3: الدور | I3: رقم المنزل | J3: بلوك | K3: اسم الشارع | L3: المجاورة | M3: الحي | N3: المنطقة | O3: لينك الخريطة | P3: أرض | Q3: فيلا/ منزل | R3: شقة | S3: أخرى | AF3: 0.025
A4: 2019-04-10 | B4: ايهاب عبد العزيز احمد | C4: 01006267473 - 01100567890 | E4: * | M4: 7 | N4: العبور | R4: * | T4: 150 | U4: س. لوكس | V4: فوري | W4: 6500 | Y4: 1000000 | Z4: 3غرفة +2حمام +2ريسبشن | AA4: تامر | AB4: ايهاب | AC4: 975000 | AD4: تمويل عقاري | AF4: =AC4*AF3 -> 24375 | XFD4: العبور
N5: عرابي | V5: سنة | X5: * | XFD5: عرابي
N6: الشروق | V6: 6شهور | X6: * | XFD6: الـقادســية
N7: المستقبل | XFD7: الشروق
... 1 more rows

Sheet Request_Compounds (hidden)
A1: الطلبات - مشاريع
A2: تاريخ البيان | B2: اسم العميل | C2: هاتف | D2: الحالة | G2: العنوان | P2: نوع العرض | T2: المساحة م2 | U2: حالة التشطيب | V2: تاريخ التسليم | W2: سعر المتر ج | X2: تسهيلات بالسداد | Y2: السعر | Z2: باقي التفاصيل | AA2: سيلز البيان | AB2: سيلز المُشتَغِل | AC2: تمت العملية بإجمالي | AD2: ملاحظات1 | AE2: ملاحظات2 | AF2: عمولة
D3: بائع | E3: مشتري | F3: وسيط | G3: الوحدة | H3: الدور | I3: رقم المنزل | J3: بلوك | K3: اسم الشارع | L3: المجاورة | M3: الحي | N3: المنطقة | O3: لينك الخريطة | P3: أرض | Q3: فيلا/ منزل | R3: شقة | S3: أخرى | AF3: 0.025
A4: 2019-04-10 | B4: ايهاب عبد العزيز احمد | C4: 01006267473 - 01100567890 | E4: * | M4: 7 | N4: العبور | R4: * | T4: 150 | U4: س. لوكس | V4: فوري | W4: 6500 | Y4: 1000000 | Z4: 3غرفة +2حمام +2ريسبشن | AA4: تامر | AB4: ايهاب | AC4: 975000 | AD4: تمويل عقاري | AF4: =AC4*AF3 -> 24375 | XFD4: العبور
N5: عرابي | X5: * | XFD5: عرابي
N6: العين السخنة | V6: 6شهور | X6: * | AD6: Bella Vento Galala_Ain Sokhna | XFD6: الـقادســية
N7: الشروق | XFD7: الشروق
... 1 more rows

Sheet Warning
A1: من فضلك قم بتفعيل الماكرو لهذا الملف
